fUST/lending_fUST_20240818
["ID","MTS","AMOUNT","RATE_DAILY","PERIOD"]
[335210950,1723981840875,-553.54699644,0.00016438,2]
[335210951,1723981840884,-500.0,0.00016438,2]
[335210952,1723981840893,-500.0,0.00016438,2]
[335210953,1723981840903,-502.4220924,0.00016438,2]
[335210954,1723981840913,-500.0,0.00016438,2]
[335210955,1723981840922,-635.46,0.00016438,2]
[335210956,1723981840932,-500.0,0.00016438,2]
[335210957,1723981840941,-500.0,0.00016438,2]
[335210958,1723981840950,-500.0,0.00016438,2]
[335210959,1723981840960,-500.0,0.00016438,2]
[335210960,1723981840969,-500.0,0.00016438,2]
[335210961,1723981840978,-500.0,0.00016438,2]
[335210962,1723981840987,-500.0,0.00016438,2]
[335210963,1723981840996,-775.0,0.00016438,2]
[335210964,1723981841006,-500.0,0.00016438,2]
[335210965,1723981841015,-500.0,0.00016438,2]
[335210966,1723981841024,-500.0,0.00016438,2]
[335210967,1723981841033,-399.57867591,0.00016438,2]
[335210968,1723981841424,-100.42132409,0.00016438,2]
[335210969,1723981841433,-500.0,0.00016438,2]
[335210970,1723981841443,-500.0,0.00016438,2]
[335210971,1723981841452,-612.78,0.00016438,2]
[335210972,1723981841462,-500.0,0.00016438,2]
[335210973,1723981841471,-500.0,0.00016438,2]
[335210974,1723981841480,-500.0,0.00016438,2]
[335210975,1723981841490,-500.0,0.00016438,2]
[335210976,1723981841499,-669.55,0.00016438,2]
[335210977,1723981841508,-179.68681379,0.00016438,2]
[335210978,1723981841519,-500.0,0.00016438,2]
[335210979,1723981841528,-500.0,0.00016438,2]
[335210980,1723981841537,-500.0,0.00016438,2]
[335210981,1723981841546,-1246.99,0.00016438,2]
[335210982,1723981841556,-500.0,0.00016438,2]
[335210983,1723981841565,-500.0,0.00016438,2]
[335210984,1723981841574,-500.0,0.00016438,2]
[335210985,1723981841583,-500.0,0.00016438,2]
[335210986,1723981841593,-150.0,0.00016438,2]
[335210987,1723981841603,-500.0,0.00016438,2]
[335210988,1723981841612,-514.81389458,0.00016438,2]
[335210989,1723981841621,-521.64609183,0.00016438,2]
[335210990,1723981841631,-500.0,0.00016438,2]
[335210991,1723981841640,-500.0,0.00016438,2]
[335210992,1723981841650,-619.09,0.00016438,2]
[335210993,1723981841659,-509.52675706,0.00016438,2]
[335210994,1723981841669,-500.0,0.00016438,2]
[335210995,1723981841678,-500.0,0.00016438,2]
[335210996,1723981841687,-500.0,0.00016438,2]
[335210997,1723981841812,-500.0,0.00016438,2]
[335210998,1723981841821,-500.0,0.00016438,2]
[335210999,1723981841831,-500.0,0.00016438,2]
[335211000,1723981841841,-500.0,0.00016438,2]
[335211001,1723981841850,-500.0,0.00016438,2]
[335211002,1723981841861,-500.0,0.00016438,2]
[335211003,1723981841872,-500.0,0.00016438,2]
[335211004,1723981841881,-500.0,0.00016438,2]
[335211005,1723981841890,-1000.76,0.00016438,2]
[335211006,1723981841900,-500.0,0.00016438,2]
[335211007,1723981841909,-500.0,0.00016438,2]
[335211008,1723981841918,-500.0,0.00016438,2]
[335211009,1723981841928,-500.0,0.00016438,2]
[335211010,1723981841938,-500.0,0.00016438,2]
[335211011,1723981841947,-500.0,0.00016438,2]
[335211012,1723981841956,-2005.0,0.00016438,10]
[335211013,1723981841965,-500.0,0.00016438,2]
[335211014,1723981841974,-1174.48,0.00016438,2]
[335211015,1723981841983,-500.0,0.00016438,2]
[335211016,1723981841993,-500.0,0.00016438,2]
[335211017,1723981842004,-500.0,0.00016438,2]
[335211018,1723981842013,-588.51,0.00016438,2]
[335211019,1723981842027,-1012.17,0.00016438,2]
[335211020,1723981842037,-500.0,0.00016438,2]
[335211021,1723981842047,-500.0,0.00016438,2]
[335211022,1723981842056,-500.0,0.00016438,2]
[335211023,1723981842065,-500.0,0.00016438,2]
[335211024,1723981842076,-500.0,0.00016438,2]
[335211025,1723981842086,-780.24,0.00016438,2]
[335211026,1723981842096,-500.0,0.00016438,2]
[335211027,1723981842106,-568.14802954,0.00016438,2]
[335211028,1723981842115,-500.0,0.00016438,2]
[335211029,1723981842125,-500.0,0.00016438,2]
[335211030,1723981842136,-596.44969579,0.00016438,2]
[335211031,1723981842145,-500.0,0.00016438,2]
[335211032,1723981842155,-500.0,0.00016438,2]
[335211033,1723981842166,-944.98,0.00016438,2]
[335211034,1723981842176,-3873.25,0.00016438,2]
[335211035,1723981842186,-583.53,0.00016438,2]
[335211036,1723981842196,-200.0,0.00016438,2]
[335211037,1723981842205,-500.0,0.00016438,2]
[335211038,1723981842214,-500.0,0.00016438,2]
[335211039,1723981842224,-748.11,0.00016438,2]
[335211040,1723981842233,-500.0,0.00016438,2]
[335211041,1723981842243,-644.31,0.00016438,2]
[335211042,1723981842252,-1099.25,0.00016438,2]
[335211043,1723981842262,-500.0,0.00016438,2]
[335211044,1723981842272,-1135.23,0.00016438,2]
[335211045,1723981842281,-500.0,0.00016438,2]
[335211046,1723981842290,-500.0,0.00016438,2]
[335211047,1723981842300,-980.79,0.00016438,2]
[335211048,1723981842310,-500.0,0.00016438,2]
[335211049,1723981842323,-500.0,0.00016438,2]
[335211050,1723981842334,-527.58428608,0.00016438,2]
[335211051,1723981842343,-2809.83,0.00016438,2]
[335211052,1723981842354,-287.191698,0.00016438,2]
[335211053,1723981842364,-500.0,0.00016438,2]
[335211054,1723981842374,-528.12,0.00016438,2]
[335211055,1723981842385,-500.0,0.00016438,2]
[335211056,1723981842395,-500.0,0.00016438,2]
[335211057,1723981842404,-500.0,0.00016438,2]
[335211058,1723981842414,-813.89,0.00016438,2]
[335211059,1723981842424,-572.16363907,0.00016438,2]
[335211060,1723981842434,-500.0,0.00016438,2]
[335211062,1723981842443,-500.0,0.00016438,2]
[335211064,1723981842454,-500.0,0.00016438,2]
[335211065,1723981842466,-500.0,0.00016438,2]
[335211066,1723981842476,-500.0,0.00016438,2]
[335211067,1723981842485,-500.0,0.00016438,2]
[335211069,1723981842495,-500.0,0.00016438,2]
[335211071,1723981842505,-500.0,0.00016438,2]
[335211073,1723981842515,-1086.36,0.00016438,2]
[335211075,1723981842526,-603.07,0.00016438,2]
[335211077,1723981842535,-500.0,0.00016438,2]
[335211079,1723981842544,-573.11,0.00016438,2]
[335211081,1723981842554,-500.0,0.00016438,2]
[335211082,1723981842563,-1303.62,0.00016438,2]
[335211083,1723981842573,-1748.15,0.00016438,2]
[335211085,1723981842584,-1900.4,0.00016438,2]
[335211087,1723981842596,-573.71,0.00016438,2]
[335211088,1723981842606,-581.94,0.00016438,2]
[335211089,1723981842615,-500.0,0.00016438,2]
[335211090,1723981842625,-576.69,0.00016438,2]
[335211091,1723981842635,-500.0,0.00016438,2]
[335211092,1723981842644,-500.0,0.00016438,2]
[335211093,1723981842653,-500.0,0.00016438,2]
[335211094,1723981842662,-814.78,0.00016438,2]
[335211095,1723981842672,-500.0,0.00016438,2]
[335211096,1723981842681,-500.0,0.00016438,2]
[335211097,1723981842691,-500.0,0.00016438,2]
[335211099,1723981842700,-527.32,0.00016438,2]
[335211100,1723981842710,-500.0,0.00016438,2]
[335211101,1723981842719,-500.0,0.00016438,2]
[335211102,1723981842728,-647.21,0.00016438,2]
[335211103,1723981842739,-500.0,0.00016438,2]
[335211104,1723981842748,-500.0,0.00016438,2]
[335211106,1723981842757,-254.22801642,0.00016438,2]
[335211107,1723981842913,-320.23588557,0.00011712,2]
[335211108,1723981842922,-2142.17325985,0.00012551,2]
[335211109,1723981842931,-245.77198358,0.00016438,2]
[335211110,1723981842940,-500.0,0.00016438,2]
[335211111,1723981842950,-510.34,0.00016438,2]
[335211112,1723981842959,-500.0,0.00016438,2]
[335211113,1723981842968,-1081.99,0.00016438,2]
[335211114,1723981842977,-500.0,0.00016438,2]
[335211115,1723981842986,-500.0,0.00016438,2]
[335211116,1723981842995,-612.6,0.00016438,2]
[335211117,1723981843004,-975.06,0.00016438,2]
[335211118,1723981843015,-500.0,0.00016438,2]
[335211119,1723981843024,-500.0,0.00016438,2]
[335211120,1723981843034,-563.34,0.00016438,2]
[335211121,1723981843043,-500.0,0.00016438,2]
[335211122,1723981843052,-802.52,0.00016438,2]
[335211123,1723981843061,-6661.82,0.00016438,2]
[335211124,1723981843070,-500.0,0.00016438,2]
[335211125,1723981843079,-500.0,0.00016438,2]
[335211126,1723981843088,-941.14,0.00016438,2]
[335211127,1723981843098,-500.0,0.00016438,2]
[335211128,1723981843107,-500.0,0.00016438,2]
[335211129,1723981843116,-919.11,0.00016438,2]
[335211130,1723981843125,-2036.79,0.00016438,2]
[335211131,1723981843135,-500.0,0.00016438,2]
[335211132,1723981843144,-500.0,0.00016438,2]
[335211133,1723981843154,-500.0,0.00016438,2]
[335211134,1723981843163,-500.0,0.00016438,2]
[335211135,1723981843173,-814.42,0.00016438,2]
[335211136,1723981843182,-500.0,0.00016438,2]
[335211137,1723981843191,-500.0,0.00016438,2]
[335211138,1723981843200,-934.11,0.00016438,2]
[335211139,1723981843210,-679.49,0.00016438,2]
[335211140,1723981843219,-500.0,0.00016438,2]
[335211141,1723981843228,-620.99,0.00016438,2]
[335211142,1723981843238,-1127.67,0.00016438,2]
[335211143,1723981843247,-2535.93,0.00016438,2]
[335211144,1723981843257,-500.0,0.00016438,2]
[335211145,1723981843268,-641.23,0.00016438,2]
[335211146,1723981843277,-768.05,0.00016438,2]
[335211147,1723981843286,-500.0,0.00016438,2]
[335211148,1723981843295,-500.0,0.00016438,2]
[335211149,1723981843305,-979.71,0.00016438,2]
[335211150,1723981843314,-500.0,0.00016438,2]
[335211151,1723981843325,-875.34,0.00016438,2]
[335211152,1723981843337,-688.59,0.00016438,2]
[335211153,1723981843346,-643.84,0.00016438,2]
[335211154,1723981843355,-500.0,0.00016438,2]
[335211155,1723981843366,-500.0,0.00016438,2]
[335211156,1723981843375,-732.03,0.00016438,2]
[335211157,1723981843384,-500.0,0.00016438,2]
[335211158,1723981843394,-687.9,0.00016438,2]
[335211159,1723981843404,-500.0,0.00016438,2]
[335211160,1723981843413,-695.84,0.00016438,2]
[335211161,1723981843423,-500.0,0.00016438,2]
[335211162,1723981843432,-500.0,0.00016438,2]
[335211163,1723981843441,-500.0,0.00016438,2]
[335211164,1723981843452,-500.0,0.00016438,2]
[335211165,1723981843461,-500.0,0.00016438,2]
[335211166,1723981843470,-500.0,0.00016438,2]
[335211167,1723981843480,-807.02,0.00016438,2]
[335211168,1723981843489,-500.0,0.00016438,2]
[335211169,1723981843498,-694.74,0.00016438,2]
[335211170,1723981843508,-746.29,0.00016438,2]
[335211171,1723981843519,-500.0,0.00016438,2]
[335211172,1723981843528,-1825.0,0.00016438,2]
[335211173,1723981843538,-759.98,0.00016438,2]
[335211174,1723981843547,-500.0,0.00016438,2]
[335211175,1723981843557,-500.0,0.00016438,2]
[335211176,1723981843566,-500.0,0.00016438,2]
[335211177,1723981843576,-500.0,0.00016438,2]
[335211178,1723981843585,-500.0,0.00016438,2]
[335211179,1723981843595,-620.11,0.00016438,2]
[335211180,1723981843605,-500.0,0.00016438,2]
[335211181,1723981843614,-500.0,0.00016438,2]
[335211182,1723981843624,-500.0,0.00016438,2]
[335211183,1723981843634,-1176.57,0.00016438,2]
[335211184,1723981843643,-504.03256699,0.00016438,2]
[335211185,1723981843653,-666.77,0.00016438,2]
[335211186,1723981843663,-503.92445131,0.00016438,2]
[335211187,1723981843673,-500.0,0.00016438,2]
[335211188,1723981843682,-500.0,0.00016438,2]
[335211189,1723981843691,-530.28,0.00016438,2]
[335211190,1723981843701,-656.06,0.00016438,2]
[335211191,1723981843711,-500.0,0.00016438,2]
[335211192,1723981843721,-500.0,0.00016438,2]
[335211193,1723981843730,-500.0,0.00016438,2]
[335211194,1723981843739,-500.0,0.00016438,2]
[335211195,1723981843750,-500.0,0.00016438,2]
[335211196,1723981843760,-437.55981865,0.00016438,2]
[335211197,1723981843771,-500.0,0.00016438,2]
[335211198,1723981843780,-953.29878775,0.0001659,2]
[335211199,1723981843790,-500.0,0.00016712,2]
[335211200,1723981843799,-568.95,0.00016712,2]
[335211201,1723981843808,-500.0,0.00016712,2]
[335211202,1723981843817,-500.0,0.00016712,2]
[335211203,1723981843827,-500.0,0.00016712,2]
[335211204,1723981843835,-517.56,0.00016712,2]
[335211205,1723981843845,-507.40307693,0.00016712,2]
[335211206,1723981843854,-500.0,0.00016712,2]
[335211207,1723981843863,-500.0,0.00016712,2]
[335211208,1723981843872,-500.0,0.00016712,2]
[335211209,1723981843881,-500.0,0.00016712,2]
[335211210,1723981843890,-500.0,0.00016712,2]
[335211211,1723981843899,-500.0,0.00016712,2]
[335211212,1723981843909,-500.0,0.00016712,2]
[335211213,1723981843918,-500.0,0.00016712,2]
[335211214,1723981843928,-625.70565956,0.00016712,2]
[335211215,1723981843938,-500.0,0.00016712,2]
[335211216,1723981843947,-500.0,0.00016712,2]
[335211217,1723981843957,-500.0,0.00016712,2]
[335211218,1723981843966,-531.8,0.00016712,2]
[335211219,1723981843975,-500.0,0.00016712,2]
[335211220,1723981843984,-500.0,0.00016712,2]
[335211221,1723981843994,-508.91305967,0.00016712,2]
[335211222,1723981844003,-500.0,0.00016712,2]
[335211223,1723981844013,-500.0,0.00016712,2]
[335211224,1723981844027,-500.0,0.00016712,2]
[335211225,1723981844036,-500.0,0.00016712,2]
[335211226,1723981844046,-500.0,0.00016712,2]
[335211227,1723981844055,-500.0,0.00016712,2]
[335211228,1723981844066,-500.0,0.00016712,2]
[335211229,1723981844075,-500.0,0.00016712,2]
[335211230,1723981844085,-500.0,0.00016712,2]
[335211231,1723981844095,-500.0,0.00016712,2]
[335211232,1723981844104,-500.0,0.00016712,2]
[335211233,1723981844114,-500.0,0.00016712,2]
[335211234,1723981844123,-500.0,0.00016712,2]
[335211235,1723981844133,-500.0,0.00016712,2]
[335211236,1723981844142,-500.0,0.00016712,2]
[335211237,1723981844151,-500.0,0.00016712,2]
[335211238,1723981844161,-500.0,0.00016712,2]
[335211239,1723981844170,-500.0,0.00016712,2]
[335211240,1723981844180,-923.78,0.00016712,2]
[335211241,1723981844189,-500.0,0.00016712,2]
[335211242,1723981844198,-500.0,0.00016712,2]
[335211243,1723981844209,-638.9,0.00016712,2]
[335211244,1723981844218,-275.21596254,0.00016712,2]
[335211245,1723981844227,-500.0,0.00016712,2]
[335211246,1723981844237,-500.0,0.00016712,2]
[335211247,1723981844246,-500.0,0.00016712,2]
[335211248,1723981844256,-500.0,0.00016712,2]
[335211249,1723981844268,-500.0,0.00016712,2]
[335211250,1723981844277,-505.77653679,0.00016712,2]
[335211251,1723981844398,-500.0,0.00016712,2]
[335211252,1723981844408,-500.0,0.00016712,2]
[335211253,1723981844417,-500.0,0.00016712,2]
[335211254,1723981844426,-512.47937746,0.00016712,2]
[335211255,1723981844437,-911.41,0.00016712,2]
[335211256,1723981844446,-502.82810063,0.00016712,2]
[335211257,1723981844456,-500.0,0.00016712,2]
[335211258,1723981844465,-705.11,0.00016712,2]
[335211259,1723981844474,-575.13,0.00016712,2]
[335211260,1723981844484,-500.0,0.00016712,2]
[335211261,1723981844494,-500.0,0.00016712,2]
[335211262,1723981844503,-500.0,0.00016712,2]
[335211263,1723981844513,-415.65681988,0.00016712,2]
[335211264,1723981844523,-500.0,0.00016712,2]
[335211265,1723981844533,-500.0,0.00016712,2]
[335211266,1723981844542,-500.0,0.00016712,2]
[335211267,1723981844552,-630.27,0.00016712,2]
[335211268,1723981844562,-500.0,0.00016712,2]
[335211269,1723981844571,-500.0,0.00016712,2]
[335211270,1723981844581,-500.0,0.00016712,2]
[335211271,1723981844590,-500.0,0.00016712,2]
[335211272,1723981844600,-500.0,0.00016712,2]
[335211273,1723981844609,-500.0,0.00016712,2]
[335211274,1723981844619,-500.0,0.00016712,2]
[335211275,1723981844628,-500.0,0.00016712,2]
[335211276,1723981844637,-500.0,0.00016712,2]
[335211277,1723981844649,-500.0,0.00016712,2]
[335211278,1723981844660,-500.0,0.00016712,2]
[335211279,1723981844669,-1041.06,0.00016712,2]
[335211280,1723981844679,-500.0,0.00016712,2]
[335211281,1723981844688,-561.51121656,0.00016712,2]
[335211282,1723981844698,-780.59,0.00016712,2]
[335211283,1723981844709,-679.41,0.00016712,2]
[335211284,1723981844718,-691.57,0.00016712,2]
[335211285,1723981844727,-500.0,0.00016712,2]
[335211286,1723981844737,-500.0,0.00016712,2]
[335211287,1723981844746,-658.55,0.00016712,2]
[335211288,1723981844755,-500.0,0.00016712,2]
[335211289,1723981844765,-543.27,0.00016712,2]
[335211290,1723981844775,-500.0,0.00016712,2]
[335211291,1723981844785,-500.0,0.00016712,2]
[335211292,1723981844794,-500.0,0.00016712,2]
[335211293,1723981844803,-500.0,0.00016712,2]
[335211294,1723981844813,-500.0,0.00016712,2]
[335211295,1723981844823,-500.0,0.00016712,2]
[335211296,1723981844832,-500.0,0.00016712,2]
[335211297,1723981844842,-500.0,0.00016712,2]
[335211298,1723981844851,-500.0,0.00016712,2]
[335211299,1723981844860,-531.34,0.00016712,2]
[335211300,1723981844869,-500.0,0.00016712,2]
[335211301,1723981844879,-631.51,0.00016712,2]
[335211302,1723981844889,-616.29,0.00016712,2]
[335211303,1723981844899,-500.0,0.00016712,2]
[335211304,1723981844909,-852.07,0.00016712,2]
[335211305,1723981844918,-500.0,0.00016712,2]
[335211306,1723981844927,-500.0,0.00016712,2]
[335211307,1723981844937,-570.65,0.00016712,2]
[335211308,1723981844947,-500.0,0.00016712,2]
[335211309,1723981844957,-500.0,0.00016712,2]
[335211310,1723981844966,-500.0,0.00016712,2]
[335211311,1723981844976,-500.0,0.00016712,2]
[335211312,1723981844985,-500.0,0.00016712,2]
[335211313,1723981844994,-500.0,0.00016712,2]
[335211314,1723981845004,-500.0,0.00016712,2]
[335211315,1723981845014,-500.0,0.00016712,2]
[335211316,1723981845025,-500.0,0.00016712,2]
[335211317,1723981845035,-642.23,0.00016712,2]
[335211318,1723981845044,-611.5,0.00016712,2]
[335211319,1723981845054,-500.0,0.00016712,2]
[335211320,1723981845063,-500.0,0.00016712,2]
[335211321,1723981845073,-500.0,0.00016712,2]
[335211322,1723981845082,-500.0,0.00016712,2]
[335211323,1723981845092,-500.0,0.00016712,2]
[335211324,1723981845101,-502.15532841,0.00016712,2]
[335211325,1723981845111,-923.86,0.00016712,2]
[335211326,1723981845121,-500.0,0.00016712,2]
[335211327,1723981845131,-500.0,0.00016712,2]
[335211328,1723981845140,-500.0,0.00016712,2]
[335211329,1723981845150,-779.1,0.00016712,2]
[335211330,1723981845159,-500.0,0.00016712,2]
[335211331,1723981845169,-500.0,0.00016712,2]
[335211332,1723981845178,-500.0,0.00016712,2]
[335211333,1723981845188,-500.0,0.00016712,2]
[335211334,1723981845198,-500.0,0.00016712,2]
[335211335,1723981845208,-500.0,0.00016712,2]
[335211336,1723981845217,-500.0,0.00016712,2]
[335211337,1723981845227,-500.0,0.00016712,2]
[335211338,1723981845236,-460.37914527,0.00016712,2]
[335211339,1723981845245,-500.0,0.00016712,2]
[335211340,1723981845254,-500.0,0.00016712,2]
[335211341,1723981845264,-500.0,0.00016712,2]
[335211342,1723981845274,-500.0,0.00016712,2]
[335211343,1723981845284,-523.74,0.00016712,2]
[335211344,1723981845294,-500.0,0.00016712,2]
[335211345,1723981845304,-500.0,0.00016712,2]
[335211346,1723981845313,-509.69,0.00016712,2]
[335211347,1723981845323,-500.0,0.00016712,2]
[335211349,1723981845336,-500.0,0.00016712,2]
[335211350,1723981845346,-709.73,0.00016712,2]
[335211351,1723981845356,-1000.0,0.00016712,2]
[335211352,1723981845365,-500.0,0.00016712,2]
[335211353,1723981845375,-500.0,0.00016712,2]
[335211354,1723981845385,-500.0,0.00016712,2]
[335211355,1723981845395,-500.0,0.00016712,2]
[335211356,1723981845405,-635.46,0.00016712,2]
[335211357,1723981845414,-500.0,0.00016712,2]
[335211358,1723981845424,-500.0,0.00016712,2]
[335211359,1723981845433,-500.0,0.00016712,2]
[335211360,1723981845443,-500.0,0.00016712,2]
[335211361,1723981845452,-500.0,0.00016712,2]
[335211362,1723981845462,-775.0,0.00016712,2]
[335211363,1723981845471,-500.0,0.00016712,2]
[335211364,1723981845481,-500.0,0.00016712,2]
[335211365,1723981845491,-500.0,0.00016712,2]
[335211366,1723981845501,-500.0,0.00016712,2]
[335211367,1723981845510,-612.78,0.00016712,2]
[335211368,1723981845521,-500.0,0.00016712,2]
[335211369,1723981845530,-669.55,0.00016712,2]
[335211370,1723981845540,-635.85141008,0.00016712,2]
[335211371,1723981845549,-1246.99,0.00016712,2]
[335211372,1723981845559,-500.0,0.00016712,2]
[335211373,1723981845568,-500.0,0.00016712,2]
[335211374,1723981845577,-500.0,0.00016712,2]
[335211375,1723981845587,-500.0,0.00016712,2]
[335211377,1723981845596,-500.0,0.00016712,2]
[335211378,1723981845605,-500.0,0.00016712,2]
[335211379,1723981845615,-168.93144031,0.00016712,2]
[335211380,1723981845625,-619.09,0.00016712,2]
[335211381,1723981845634,-500.0,0.00016712,2]
[335211382,1723981845644,-500.0,0.00016712,2]
[335211383,1723981845654,-500.0,0.00016712,2]
[335211384,1723981845664,-500.0,0.00016712,2]
[335211385,1723981845674,-155.97998199,0.00016712,2]
[335211386,1723981845683,-500.0,0.00016712,2]
[335211387,1723981845692,-500.0,0.00016712,2]
[335211388,1723981845702,-500.0,0.00016712,2]
[335211389,1723981845711,-500.0,0.00016712,2]
[335211390,1723981845720,-1000.76,0.00016712,2]
[335211391,1723981845734,-518.08165798,0.00016712,2]
[335211392,1723981845744,-500.0,0.00016712,2]
[335211393,1723981845755,-2005.0,0.00016712,10]
[335211394,1723981845769,-500.0,0.00016712,2]
[335211395,1723981845780,-1174.48,0.00016712,2]
[335211396,1723981845790,-500.0,0.00016712,2]
[335211397,1723981845800,-500.0,0.00016712,2]
[335211398,1723981845810,-588.51,0.00016712,2]
[335211399,1723981845822,-1012.17,0.00016712,2]
[335211400,1723981845831,-500.0,0.00016712,2]
[335211401,1723981845842,-500.0,0.00016712,2]
[335211403,1723981845853,-500.0,0.00016712,2]
[335211405,1723981845863,-500.0,0.00016712,2]
[335211407,1723981845875,-500.0,0.00016712,2]
[335211409,1723981845885,-780.24,0.00016712,2]
[335211411,1723981845895,-500.0,0.00016712,2]
[335211413,1723981845905,-500.0,0.00016712,2]
[335211415,1723981845915,-500.0,0.00016712,2]
[335211418,1723981845928,-944.98,0.00016712,2]
[335211420,1723981845938,-3873.25,0.00016712,2]
[335211422,1723981845947,-583.53,0.00016712,2]
[335211424,1723981845956,-200.0,0.00016712,2]
[335211426,1723981845966,-607.67760922,0.00016712,2]
[335211428,1723981845977,-500.0,0.00016712,2]
[335211430,1723981845987,-748.11,0.00016712,2]
[335211432,1723981845999,-500.0,0.00016712,2]
[335211435,1723981846011,-644.31,0.00016712,2]
[335211437,1723981846027,-1099.25,0.00016712,2]
[335211439,1723981846040,-616.64732154,0.00016712,2]
[335211441,1723981846050,-1135.23,0.00016712,2]
[335211443,1723981846060,-500.0,0.00016712,2]
[335211445,1723981846069,-500.0,0.00016712,2]
[335211447,1723981846079,-980.79,0.00016712,2]
[335211449,1723981846088,-500.0,0.00016712,2]
[335211451,1723981846097,-2809.83,0.00016712,2]
[335211453,1723981846108,-500.0,0.00016712,2]
[335211455,1723981846117,-528.12,0.00016712,2]
[335211457,1723981846127,-500.0,0.00016712,2]
[335211459,1723981846136,-500.0,0.00016712,2]
[335211461,1723981846146,-813.89,0.00016712,2]
[335211464,1723981846157,-500.0,0.00016712,2]
[335211466,1723981846167,-500.0,0.00016712,2]
[335211468,1723981846178,-524.89954119,0.00016712,2]
[335211470,1723981846189,-500.0,0.00016712,2]
[335211472,1723981846201,-500.0,0.00016712,2]
[335211474,1723981846212,-500.0,0.00016712,2]
[335211476,1723981846223,-500.0,0.00016712,2]
[335211477,1723981846234,-476.9657291,0.00016712,2]
[335211478,1723981846244,-1086.36,0.00016712,2]
[335211479,1723981846255,-603.07,0.00016712,2]
[335211480,1723981846267,-500.0,0.00016712,2]
[335211481,1723981846276,-573.11,0.00016712,2]
[335211482,1723981846286,-500.0,0.00016712,2]
[335211483,1723981846297,-1303.62,0.00016712,2]
[335211484,1723981846308,-1748.15,0.00016712,2]
[335211485,1723981846320,-161.117333,0.00016712,2]
[335211486,1723981846335,-1900.4,0.00016712,2]
[335211487,1723981846346,-161.117333,0.00016712,2]
[335211488,1723981846358,-573.71,0.00016712,2]
[335211489,1723981846371,-581.94,0.00016712,2]
[335211490,1723981846383,-500.0,0.00016712,2]
[335211491,1723981846393,-576.69,0.00016712,2]
[335211492,1723981846403,-500.0,0.00016712,2]
[335211493,1723981846414,-500.0,0.00016712,2]
[335211494,1723981846425,-814.78,0.00016712,2]
[335211495,1723981846434,-500.0,0.00016712,2]
[335211496,1723981846443,-502.74047752,0.00016712,2]
[335211497,1723981846452,-321.84816398,0.00016712,2]
[335211498,1723981846461,-527.32,0.00016712,2]
[335211499,1723981846470,-500.0,0.00016712,2]
[335211500,1723981846479,-500.0,0.00016712,2]
[335211501,1723981846489,-647.21,0.00016712,2]
[335211502,1723981846498,-500.0,0.00016712,2]
[335211503,1723981846507,-500.0,0.00016712,2]